bitfinex/quotes_ETHUSD_20250626
["timestamp","ask_amount","ask_price","bid_price","bid_amount"]
[1750947132113,0.7759,2424.2,2423.4,4.12756308]
[1750947132321,0.7759,2424.2,2423.4,0.00114832]
[1750947132322,0.12886669,2424.1,2423.4,0.00114832]
[1750947132496,7.045,2424.1,2423.4,0.00114832]
[1750947132884,0.7759,2424.2,2423.4,0.00114832]
[1750947132885,0.12886678,2424.0,2423.4,0.00114832]
[1750947133089,0.12887024,2424.1,2423.4,0.00114832]
[1750947133320,0.79607702,2424.1,2423.4,0.00114832]
[1750947133696,0.79607702,2424.1,2423.5,4.12616628]
[1750947133899,0.79607702,2424.1,2423.4,0.00114832]
[1750947134407,0.2056,2423.8,2423.4,0.20674832]
[1750947136226,4.12609341,2423.6,2423.4,0.00114832]
[1750947136396,1.48557483,2423.5,2423.4,0.00114832]
[1750947136596,0.12889878,2423.5,2423.4,0.00114832]
[1750947136826,10.0,2423.7,2423.4,0.00114832]
[1750947137011,0.12889174,2423.6,2423.4,0.00114832]
[1750947137213,1.79917917,2423.6,2423.4,0.00114832]
[1750947137417,0.55,2423.5,2423.4,0.00114832]
[1750947137616,4.67626366,2423.5,2423.4,0.00114832]
[1750947137838,5.47676366,2423.5,2423.4,0.00114832]
[1750947137998,5.60565286,2423.5,2423.4,0.00114832]
[1750947138199,7.75874824,2423.5,2423.4,0.00114832]
[1750947139107,8.73467975,2423.5,2423.4,0.00114832]
[1750947139628,8.7344137,2423.5,2423.4,0.00114832]
[1750947140407,3.63248458,2423.5,2423.4,0.00114832]
[1750947140608,22.61848458,2423.5,2423.4,0.00114832]
[1750947140818,13.63248458,2423.5,2423.4,0.00114832]
[1750947141017,26.74574824,2423.5,2423.4,0.00114832]
[1750947141228,22.61948458,2423.5,2423.4,0.00114832]
[1750947141424,22.61748458,2423.5,2423.4,0.00114832]
[1750947141830,0.1288892,2423.5,2423.4,0.00114832]
[1750947141998,0.12889203,2423.5,2423.4,0.00114832]
[1750947144532,4.25515569,2423.5,2423.4,0.00114832]
[1750947144703,5.57245569,2423.5,2423.4,0.00114832]
[1750947145104,1.44619203,2423.5,2423.4,0.00114832]
[1750947145306,12.11489861,2423.5,2423.4,0.00114832]
[1750947145516,13.08975826,2423.5,2423.4,0.00114832]
[1750947145716,27.21602192,2423.5,2423.4,0.00114832]
[1750947148137,4.12643393,2423.4,2423.3,0.1236594]
[1750947148437,0.7673,2422.6,2421.9,0.7725]
[1750947148615,7.081,2422.5,2421.9,4.90139998]
[1750947148817,7.081,2422.6,2421.9,4.90139998]
[1750947149117,7.081,2422.6,2421.9,4.90147523]
[1750947149315,7.081,2422.6,2421.9,0.7725]
[1750947149516,7.081,2422.6,2421.9,4.90145219]
[1750947149716,0.55,2422.8,2422.0,4.88621607]
[1750947150031,7.079,2422.7,2422.0,4.88621607]
[1750947150231,7.078,2423.0,2422.1,0.7725]
[1750947150536,0.12892938,2422.9,2422.4,0.7725]
[1750947150739,0.12892369,2422.9,2422.4,4.90055093]
[1750947150906,0.55,2423.0,2422.4,0.7725]
[1750947151108,0.89192916,2422.9,2422.4,0.7725]
[1750947151310,0.763,2422.9,2422.4,0.7725]
[1750947151528,0.89192916,2422.9,2422.4,0.7725]
[1750947151733,0.763,2422.9,2422.4,0.7725]
[1750947151932,0.12892916,2422.9,2422.4,0.7725]
[1750947152209,0.55,2423.0,2422.4,0.7725]
[1750947152542,0.89622916,2422.9,2422.4,0.7725]
[1750947152743,0.89622916,2422.9,2422.1,0.7895]
[1750947153042,0.89622916,2422.9,2422.2,4.12841152]
[1750947153240,0.12892916,2422.9,2422.1,0.7895]
[1750947153444,7.077,2423.0,2422.2,0.8238]
[1750947153647,0.7602,2423.3,2422.3,4.12816783]
[1750947153946,7.20593056,2423.2,2422.4,4.95184703]
[1750947154152,0.12893056,2423.1,2422.4,0.8238]
[1750947154318,0.12893056,2423.2,2422.5,4.62301612]
[1750947154644,7.078,2423.3,2422.6,4.12764513]
[1750947154820,0.12893056,2423.2,2422.6,4.12764513]
[1750947155012,0.12893056,2423.2,2422.6,0.7707]
[1750947155417,0.12893056,2423.2,2422.6,4.89848148]
[1750947155750,0.12893056,2423.3,2422.6,0.7707]
[1750947155917,0.12893056,2423.2,2422.6,0.7707]
[1750947156115,0.12893056,2423.2,2422.6,4.89848875]
[1750947156650,0.12893056,2423.2,2422.6,4.89849076]
[1750947156819,0.12893056,2423.2,2422.6,0.7707]
[1750947157456,0.12893056,2423.2,2422.1,0.7964]
[1750947157624,0.12893056,2423.2,2422.6,0.83]
[1750947157827,0.8327,2423.4,2422.6,0.83]
[1750947157828,0.12893056,2423.3,2422.6,0.83]
[1750947158040,1.22509362,2423.3,2422.6,0.83]
[1750947158243,0.2056,2422.8,2422.6,0.83]
[1750947158645,0.12893056,2423.3,2422.6,0.83]
[1750947158851,0.12893056,2423.2,2422.6,0.83]
[1750947159048,7.21493056,2423.1,2422.3,0.8154]
[1750947159346,0.85042362,2423.0,2422.3,0.8154]
[1750947159545,0.85042362,2423.0,2422.4,4.12804745]
[1750947159750,0.85042362,2423.0,2422.3,0.8154]
[1750947159950,0.12893056,2422.9,2422.3,0.8154]
[1750947160450,0.12893056,2422.9,2422.3,4.94366722]
[1750947160626,0.12893056,2422.9,2422.3,0.8154]
[1750947161178,0.12893056,2422.9,2422.3,4.94369271]
[1750947161457,0.12893056,2422.8,2422.3,1.91693405]
[1750947161659,0.12893056,2422.9,2422.3,0.8154]
[1750947161865,7.91,2423.2,2422.3,0.8154]
[1750947161866,0.12893056,2422.8,2422.3,0.8154]
[1750947162157,0.97225387,2423.5,2422.5,0.8297]
[1750947162158,0.12893056,2423.1,2422.5,0.8297]
[1750947162329,0.831,2422.9,2422.2,0.8297]
[1750947162748,0.831,2422.9,2422.2,4.95805658]
[1750947163265,0.831,2422.9,2422.2,6.13676818]
[1750947163565,0.95993056,2422.9,2422.2,6.13679593]
[1750947163770,0.55,2423.1,2422.3,4.90584313]
[1750947164064,0.12893056,2423.0,2422.3,0.7776]
[1750947164235,0.12893056,2422.9,2422.4,4.12805465]
[1750947164570,0.12893056,2423.2,2422.4,4.12805465]
[1750947164737,0.12893056,2423.1,2422.4,4.12807391]
[1750947164938,0.12893056,2423.0,2422.4,4.12799519]
[1750947165156,0.12893056,2422.9,2422.4,4.12799519]
[1750947165348,0.7831,2423.3,2422.4,0.8209]
[1750947165548,0.1289222,2423.2,2422.7,4.12754683]
[1750947165761,0.1289222,2423.1,2422.7,4.12754683]
[1750947165960,0.1289222,2423.0,2422.8,4.9483152]
[1750947166141,0.1289222,2422.9,2422.8,0.8209]
[1750947167172,0.1289222,2422.9,2422.8,4.94835583]
[1750947167540,0.97399283,2423.6,2423.0,4.12704952]
[1750947167867,0.97399283,2423.8,2423.0,4.12711514]
[1750947168067,11.74689283,2423.9,2423.1,4.12692094]
[1750947168266,1.33166006,2423.8,2423.0,6.07002453]
[1750947168471,2.30565289,2423.8,2423.1,4.12685083]
[1750947168774,2.30565289,2423.8,2423.0,6.07002453]
[1750947168775,0.97399283,2423.8,2423.4,4.94840241]
[1750947168973,0.97399283,2423.9,2423.8,9.47079894]
[1750947169175,3.26472945,2424.6,2424.0,4.12541254]
[1750947169176,0.97528428,2424.5,2424.0,4.12541254]
[1750947169470,0.2056,2424.6,2424.1,1.943]
[1750947169637,0.2056,2424.6,2424.2,0.2056]
[1750947169835,3.26472945,2425.0,2424.3,0.8031]
[1750947170036,0.2056,2424.9,2424.5,4.33015898]
[1750947170241,0.2056,2425.2,2424.8,0.2056]
[1750947170472,0.2056,2425.2,2424.9,4.1237785]
[1750947170655,0.2056,2425.2,2424.9,4.12382427]
[1750947170861,0.2056,2425.2,2424.8,0.9606]
[1750947171393,4.06252945,2425.7,2424.8,5.5817312]
[1750947171546,0.2056,2425.5,2424.8,4.87904949]
[1750947171745,0.2056,2425.5,2425.1,0.2056]
[1750947171983,0.2056,2425.5,2425.3,0.7781]
[1750947172343,3.47032945,2425.9,2425.3,0.7781]
[1750947172565,3.47032945,2425.9,2425.4,0.2056]
[1750947172775,3.8173624,2425.9,2425.4,0.2056]
[1750947173381,0.55263295,2425.9,2425.4,0.2056]
[1750947174044,0.2056,2425.9,2425.4,10.2056]
[1750947174245,3.26472945,2426.0,2425.6,0.2056]
[1750947174555,3.26472945,2426.0,2425.2,1.946]
[1750947174556,0.2056,2426.3,2425.8,0.9837]
[1750947174771,0.2056,2426.3,2425.8,2.9287]
[1750947175579,0.2056,2426.6,2426.1,0.2056]
[1750947175791,0.2056,2426.9,2426.1,4.32739927]
[1750947175947,0.2056,2426.9,2426.4,0.2056]
[1750947176141,0.7978,2427.0,2426.3,1.945]
[1750947176366,0.40625295,2426.9,2426.4,0.8016]
[1750947176607,0.7978,2427.0,2426.4,0.8016]
[1750947176749,5.99742945,2427.3,2426.4,0.8016]
[1750947176949,2.7327,2427.3,2426.4,0.8016]
[1750947177149,10.0,2427.2,2426.4,4.92284353]
[1750947177447,0.7877,2427.3,2426.5,4.1211491]
[1750947177769,10.10375659,2428.0,2426.5,4.1211491]
[1750947177770,0.7709,2428.3,2427.2,4.89052742]
[1750947178076,0.7709,2428.3,2427.2,2.7157]
[1750947178249,0.89958503,2428.3,2427.2,2.7157]
[1750947178446,0.7709,2428.3,2427.3,4.11979622]
[1750947178766,0.7709,2428.3,2427.2,2.7157]
[1750947178952,0.9917585,2428.2,2427.3,4.11980389]
[1750947179151,0.12868503,2428.1,2426.9,0.7569]
[1750947179345,0.7709,2428.3,2427.0,10.0]
[1750947179582,0.7709,2428.3,2426.8,19.893]
[1750947179583,4.88911774,2428.3,2427.1,6.85880753]
[1750947179804,0.55,2428.2,2427.1,6.85880753]
[1750947180108,14.6683211,2428.2,2427.1,2.7387]
[1750947180309,14.6683211,2428.2,2426.8,22.6307]
[1750947180310,1.329,2427.9,2426.8,22.6307]
[1750947180793,10.36,2427.9,2426.8,16.85833949]
[1750947180946,14.47889747,2427.9,2426.8,12.7377]
[1750947181150,14.47889747,2427.9,2427.0,0.9]
[1750947181151,0.55,2427.7,2427.0,0.9]
[1750947181684,0.55,2427.7,2427.0,5.0203079]
[1750947181849,1.055,2427.6,2427.0,0.9]
[1750947182054,0.779,2427.9,2426.8,2.7377]
[1750947182250,0.779,2427.9,2427.1,4.1201375]
[1750947182449,0.779,2427.9,2427.2,4.11995732]
[1750947182685,0.779,2427.9,2427.2,4.11995756]
[1750947182866,0.779,2427.9,2427.1,4.12005922]
[1750947183071,0.55,2427.8,2427.0,4.12031105]
[1750947183365,0.779,2427.9,2427.3,4.11971931]
[1750947183571,0.779,2427.9,2427.4,4.11961201]
[1750947183772,0.779,2427.9,2427.2,4.11995846]
[1750947183773,0.23229221,2427.9,2427.7,4.11900012]
[1750947183973,0.7957,2428.2,2427.3,2.7478]
[1750947184177,0.7957,2428.2,2427.4,4.11959378]
[1750947184377,0.55,2428.1,2427.3,6.86756083]
[1750947184560,0.55,2428.1,2427.4,4.11950212]
[1750947184889,0.55,2428.1,2427.4,4.1196022]
[1750947185086,0.55,2428.1,2427.3,6.86751988]
[1750947185260,0.55,2428.1,2427.3,1.944]
[1750947186204,0.2056,2427.6,2427.3,1.944]
[1750947187424,0.2056,2427.4,2427.0,1.0167]
[1750947187609,0.2056,2427.3,2427.0,4.93133432]
[1750947187824,0.2056,2427.5,2427.1,4.32565158]
[1750947188119,0.12870823,2427.8,2427.2,1.1056]
[1750947188318,0.2056,2428.0,2427.5,4.11938362]
[1750947188524,0.2056,2428.0,2427.6,0.2056]
[1750947188836,0.7851,2428.1,2427.6,0.2056]
[1750947188991,0.55,2428.0,2427.6,0.2056]
[1750947189174,10.0,2427.7,2427.6,0.2056]
[1750947189381,17.70803063,2427.7,2427.6,0.13055217]
[1750947189611,17.70803063,2427.7,2426.1,2.45174585]
[1750947189612,11.3351,2427.4,2426.3,4.32696701]
[1750947189815,0.2056,2426.7,2426.3,0.2056]
[1750947190522,0.7851,2426.8,2426.1,1.67554585]
[1750947190673,0.2056,2426.6,2426.2,4.1215677]
[1750947190876,0.7851,2426.8,2426.2,4.1215677]
[1750947190877,0.7851,2426.8,2426.2,1.01247079]
[1750947191090,0.2056,2426.7,2426.3,4.3269983]
[1750947191310,10.55,2427.1,2426.2,1.01247079]
[1750947191311,0.7851,2427.1,2426.5,4.8973431]
[1750947191526,0.9907,2427.1,2426.6,4.32658559]
[1750947191742,0.2056,2427.1,2426.7,4.1206899]
[1750947192098,0.2056,2427.1,2426.8,4.12063577]
[1750947192518,0.2056,2427.1,2426.7,4.12073684]
[1750947192929,0.2056,2427.1,2426.8,4.1206012]
[1750947193131,0.2056,2427.1,2426.6,0.2056]
[1750947193434,0.2056,2427.2,2426.9,4.12033148]
[1750947193621,0.2056,2427.2,2427.0,4.12027812]
[1750947193828,0.2056,2427.2,2427.1,4.12014338]
[1750947194005,0.2056,2427.6,2427.2,4.11986715]
[1750947194201,0.7871,2427.9,2427.2,4.1198382]
[1750947194430,0.2056,2427.6,2427.2,4.1198382]
[1750947194736,0.2056,2427.6,2427.3,4.11977476]
[1750947195104,0.2056,2427.6,2427.3,4.1197972]
[1750947195301,0.2056,2427.6,2427.4,4.1196214]
[1750947195505,0.2056,2427.6,2427.3,4.11971305]
[1750947195735,0.2056,2427.6,2427.4,4.1195144]
[1750947195939,0.2056,2427.6,2427.3,4.11971461]
[1750947196232,0.2056,2427.6,2427.1,0.9941]
[1750947196436,0.2056,2427.6,2427.5,4.11946446]
[1750947196818,0.2056,2427.6,2427.4,4.11961278]
[1750947197021,0.2056,2427.6,2427.5,4.11946446]
[1750947197914,4.11715651,2428.9,2427.3,4.3253899]
[1750947198110,0.2056,2428.0,2427.7,4.11901174]
[1750947198345,0.2056,2428.0,2427.8,4.11892957]
[1750947198513,0.2056,2428.0,2427.6,0.7885]
[1750947198750,0.2056,2428.0,2427.8,4.11882637]
[1750947199086,0.2056,2428.0,2427.9,4.11878578]
[1750947200071,0.12864275,2428.6,2428.3,4.11804447]
[1750947200271,0.2056,2428.5,2428.4,4.11793773]
[1750947201380,0.2056,2428.7,2428.4,4.1178639]
[1750947201576,0.2056,2428.7,2428.5,4.11767173]
[1750947201783,0.2056,2428.7,2428.4,4.11788004]
[1750947202076,0.2056,2428.7,2428.2,5.14549261]
[1750947202274,0.8273,2428.8,2427.9,0.84433118]
[1750947202275,0.8273,2428.8,2427.9,1.59653118]
[1750947202499,0.2056,2428.5,2428.1,4.3239583]
[1750947202994,0.8273,2428.8,2428.2,4.11825934]
[1750947203586,0.8273,2428.8,2428.3,4.11807695]
[1750947203800,0.8273,2428.8,2428.0,6.06255777]
[1750947204077,0.55,2428.7,2428.1,4.11844101]
[1750947204269,0.8273,2428.8,2428.1,4.1183597]
[1750947204472,0.8273,2428.8,2428.0,6.06253319]
[1750947204782,0.8273,2428.8,2428.1,4.11841574]
[1750947204946,0.8273,2428.8,2428.0,7.45058347]
[1750947205648,0.8273,2428.8,2428.2,4.11819921]
[1750947205969,0.8273,2428.8,2428.1,4.1183529]
[1750947206164,0.8273,2428.8,2428.2,4.11825735]
[1750947206410,0.8273,2428.8,2428.5,4.11773595]
[1750947206578,0.8273,2428.8,2428.2,5.27509026]
[1750947206774,0.8273,2428.8,2428.4,4.11792194]
[1750947207186,0.8273,2428.8,2428.4,4.11789905]
[1750947207404,0.8273,2428.8,2428.5,4.11769158]
[1750947207605,0.8273,2428.8,2428.4,4.11791597]
[1750947207794,0.8273,2428.8,2428.2,1.15688209]
[1750947207795,0.8273,2428.8,2428.5,4.11762393]
[1750947207993,0.8273,2428.8,2428.2,1.15688209]
[1750947208195,0.7924,2429.1,2428.3,4.11810731]
[1750947208398,0.7924,2429.1,2428.8,4.11724131]
[1750947208599,1.8573879,2429.7,2428.8,4.11716655]
[1750947208811,1.0926879,2429.6,2428.8,4.11716655]
[1750947208984,0.55,2429.5,2428.8,4.11716655]
[1750947209181,0.12860251,2429.5,2429.0,4.11689889]
[1750947209488,0.96408539,2429.6,2428.9,4.11707514]
[1750947209489,0.12860251,2429.6,2428.9,4.11707514]
[1750947210034,0.55,2429.6,2428.4,2.32069894]
[1750947210231,0.55,2429.3,2428.4,2.32069894]
[1750947210398,10.8001,2429.4,2428.4,2.32069894]
[1750947210399,0.55,2429.1,2428.4,1.944]
[1750947210886,0.55,2428.9,2428.2,11.824]
[1750947211290,0.55,2428.9,2428.2,15.94214718]
[1750947211490,0.55,2428.9,2428.3,4.11808017]
[1750947212098,0.55,2428.9,2428.2,15.94218262]
[1750947212407,0.55,2428.9,2428.3,4.11810126]
[1750947213020,0.2056,2428.6,2428.3,4.11810126]
[1750947213701,0.2056,2428.6,2428.4,4.11793283]
[1750947214207,0.2056,2428.6,2428.3,4.11810731]
[1750947214838,0.2056,2428.6,2428.4,4.11792331]
[1750947215000,0.2056,2428.6,2428.3,5.8105337]
[1750947215205,0.2056,2428.6,2428.3,1.69252073]
[1750947215436,0.0482037,2428.6,2428.3,0.7753]
[1750947215618,8.07688539,2429.4,2428.3,0.7753]
[1750947215619,0.95942156,2429.3,2428.3,0.7753]
[1750947215930,0.93542156,2429.3,2428.5,0.7944]
[1750947216103,0.8068,2429.6,2428.4,0.7944]
[1750947216296,2.34660156,2429.5,2428.4,0.7944]
[1750947216502,0.12857751,2429.4,2428.5,10.0]
[1750947216816,0.12857751,2429.4,2428.8,0.7944]
[1750947217022,0.12857751,2429.4,2429.1,4.11665969]
[1750947217223,1.943,2429.5,2429.1,4.11665969]
[1750947217397,0.12857513,2429.4,2429.1,4.11662331]
[1750947217726,1.943,2429.5,2429.1,4.52828564]
[1750947218237,1.943,2429.5,2429.3,4.11627363]
[1750947218414,1.943,2429.5,2429.2,4.11650275]
[1750947218734,1.943,2429.5,2429.1,4.52836213]
[1750947218735,1.943,2429.5,2429.1,4.52830449]
[1750947219131,1.943,2429.5,2429.1,0.41166233]
[1750947219332,1.943,2429.5,2428.8,4.91165209]
[1750947219333,1.943,2429.5,2428.8,10.7944]
[1750947219535,0.8264,2429.4,2428.7,4.11730067]
[1750947219757,4.11523979,2430.0,2428.6,4.90899063]
[1750947219758,0.97111414,2430.0,2429.1,4.11673638]
[1750947220039,0.97111414,2430.0,2428.5,9.70869597]
[1750947220040,10.55,2430.1,2428.7,0.7875]
[1750947220241,0.55,2429.8,2428.8,4.11715791]
[1750947220450,0.55,2429.8,2428.7,4.90486238]
[1750947220605,0.55,2429.8,2428.9,4.11708726]
[1750947221244,0.55,2429.6,2428.9,4.11707575]
[1750947221457,1.943,2429.5,2428.7,0.7875]
[1750947221627,1.943,2429.5,2428.8,4.63899151]
[1750947221829,1.943,2429.5,2428.8,0.52179721]
[1750947222159,9.877,2430.0,2429.3,4.11638138]
[1750947222326,9.877,2430.0,2428.8,0.52179721]
[1750947222327,9.877,2430.0,2429.2,25.33831259]
[1750947222522,11.82,2430.0,2429.2,10.0]
[1750947222828,11.82,2430.0,2429.3,1.49106352]
[1750947223031,11.82,2430.0,2429.7,4.11564098]
[1750947223439,11.82,2430.0,2429.3,1.49106352]
[1750947223640,11.82,2430.0,2429.3,5.6074061]
[1750947224052,11.82,2430.0,2429.7,4.11572671]
[1750947225155,11.82,2430.0,2429.8,4.11555723]
[1750947225341,11.82,2430.0,2429.7,4.11571308]
[1750947225743,11.82,2430.0,2429.8,4.11555367]
[1750947225943,11.82,2430.0,2429.7,4.32124039]
[1750947226342,11.82,2430.0,2429.8,4.11552359]
[1750947226730,11.82,2430.0,2429.7,0.2056]
[1750947226935,12.0256,2430.0,2429.5,4.32160724]
[1750947227137,13.02256,2430.0,2429.3,5.60739097]
[1750947227360,0.2056,2429.8,2429.3,4.32192745]
[1750947228370,0.2056,2429.8,2429.4,4.11623315]
[1750947229369,0.2056,2429.8,2429.3,14.32193186]
[1750947229567,0.0321,2429.7,2429.3,0.2056]
[1750947229766,0.2056,2429.3,2429.0,4.11682498]
[1750947229967,1.943,2429.2,2429.0,4.11682498]
[1750947230647,1.943,2429.2,2428.9,14.32260554]
[1750947230843,1.943,2429.2,2428.9,0.2056]
[1750947231249,2.1486,2429.2,2428.7,0.2056]
[1750947231450,2.1486,2429.2,2428.8,4.11721483]
[1750947231849,2.1486,2429.2,2428.7,0.2056]
[1750947232050,0.0321,2429.1,2428.7,0.2056]
[1750947232246,0.0321,2429.1,2428.7,10.2056]
[1750947232442,0.0321,2429.1,2428.7,4.32301495]
[1750947233266,0.0321,2429.1,2428.8,4.11716672]
[1750947233468,0.0321,2429.1,2428.8,4.11725955]
[1750947234050,0.0321,2429.1,2428.7,4.32291592]
[1750947234550,0.0321,2429.1,2428.4,4.11791199]
[1750947234761,0.2056,2428.9,2428.5,4.11767062]
[1750947234962,0.2056,2428.9,2428.6,4.11759091]
[1750947235170,0.2056,2428.9,2428.5,14.11768939]
[1750947236471,0.2056,2428.9,2428.5,4.11774419]
[1750947237293,0.2056,2428.9,2428.5,5.03624638]
[1750947237590,0.2056,2428.9,2428.4,4.76553587]
[1750947237591,0.2056,2428.9,2428.4,0.64767958]
[1750947237766,0.2056,2428.9,2428.4,14.32342981]
[1750947238461,0.2056,2428.9,2428.4,4.32342981]
[1750947238656,0.2056,2428.9,2428.4,0.2056]
[1750947238859,0.55,2429.0,2428.2,4.11818497]
[1750947239063,0.2056,2428.7,2428.4,4.11792718]
[1750947239287,1.968,2428.6,2428.4,4.11792718]
[1750947240163,1.968,2428.8,2428.7,4.11733204]
[1750947240363,1.968,2428.8,2428.5,0.2056]
[1750947240594,0.2056,2429.0,2428.5,0.2056]
[1750947240782,1.968,2428.9,2428.8,4.11714636]
[1750947240980,1.968,2428.9,2428.7,4.61727587]
[1750947241293,2.1736,2429.0,2428.8,4.11725955]
[1750947241664,0.2056,2429.0,2428.8,4.11725955]
[1750947241865,2.1736,2429.0,2428.8,4.11725955]
[1750947242401,2.1736,2429.0,2428.7,4.61739101]
[1750947242609,2.1736,2429.0,2428.8,4.1171629]
[1750947242801,0.0321,2429.7,2428.9,4.90319004]
[1750947242962,0.2056,2429.5,2429.3,4.11629109]
[1750947243169,0.2056,2429.5,2429.1,0.2056]
[1750947243383,0.2056,2429.3,2428.9,4.11700676]
[1750947243770,10.55,2429.9,2428.7,4.61733396]
[1750947243771,2.0011,2429.2,2428.7,4.61733396]
[1750947243978,0.2056,2429.1,2428.7,4.61733396]
[1750947244275,0.2056,2429.1,2428.7,4.61735274]
[1750947245185,0.2056,2429.1,2428.8,4.11724589]
[1750947245573,0.2056,2429.1,2428.7,4.61735166]
[1750947245773,0.2056,2429.1,2428.8,4.11723586]
[1750947246106,0.2056,2429.1,2428.7,4.61734458]
[1750947246507,0.2056,2429.1,2428.8,4.11724485]
[1750947247113,0.2056,2429.1,2428.7,4.61742172]
[1750947247114,0.2056,2429.1,2428.7,4.61739286]
[1750947247297,0.2056,2429.1,2428.8,4.11724406]
[1750947247501,0.2056,2429.1,2428.7,4.61736441]
[1750947247676,0.2056,2429.1,2428.7,0.5]
[1750947247877,0.2056,2428.9,2428.7,0.5]
[1750947248478,0.2056,2428.9,2428.4,4.32352499]
[1750947248825,0.2056,2428.9,2428.4,5.90559747]
[1750947249114,0.2056,2428.9,2428.4,1.78767248]
[1750947249716,0.2056,2428.9,2428.4,5.90553932]
[1750947250228,0.0321,2428.8,2428.4,1.78767248]
[1750947250513,0.0321,2428.8,2428.4,0.2056]
[1750947250886,0.0321,2428.8,2428.6,0.5]
[1750947252109,1.969,2428.7,2428.6,0.5]
[1750947252324,0.0321,2428.8,2428.6,0.5]
[1750947252486,0.2056,2428.9,2428.6,4.61759719]
[1750947252827,2.1746,2429.1,2428.7,0.46175972]
[1750947253122,0.2056,2429.1,2428.7,0.46175972]
[1750947253318,2.1746,2429.1,2428.7,0.46175972]
[1750947254020,0.2056,2429.1,2428.8,4.11724988]
[1750947254202,2.1746,2429.1,2428.6,4.82314847]
[1750947254524,2.1746,2429.1,2428.7,4.11733291]
[1750947254726,2.1746,2429.1,2428.6,4.8231005]
[1750947254890,0.2056,2429.1,2428.7,4.11742002]
[1750947255090,0.2056,2429.1,2428.7,4.11735332]
[1750947255931,0.2056,2429.1,2428.7,4.11726358]
[1750947256228,2.1746,2429.1,2428.7,5.08755254]
[1750947256627,0.2056,2429.1,2428.7,5.08755254]
[1750947257030,2.1746,2429.1,2428.7,5.08755254]
[1750947257231,0.55,2429.0,2428.6,0.7056]
[1750947257405,0.55,2429.0,2428.3,0.30800313]
[1750947257406,0.2056,2428.8,2428.3,4.63168377]
[1750947257729,0.2056,2428.8,2428.5,4.1176835]
[1750947258028,0.2056,2428.8,2428.4,4.11788419]
[1750947258327,0.2056,2428.8,2428.1,4.11836701]
[1750947258328,0.0321,2428.7,2428.1,4.11836701]
[1750947258636,0.55,2428.6,2427.9,4.11867161]
[1750947258839,0.2056,2428.3,2427.9,4.11867161]
[1750947259329,2.5511,2428.2,2427.6,5.76966218]
[1750947259527,0.2056,2428.0,2427.7,4.11910047]
[1750947259843,0.2056,2428.0,2427.7,5.12855143]
[1750947260000,0.2056,2428.0,2427.7,1.00945096]
[1750947260201,0.2056,2428.0,2427.6,1.65036861]
[1750947260202,0.2056,2427.7,2427.6,1.65036861]
[1750947260701,0.0321,2428.2,2427.9,4.11869272]
[1750947260902,1.969,2428.1,2427.8,4.32448834]
[1750947261127,0.2377,2428.2,2428.0,4.11851456]
[1750947261315,2.2067,2428.2,2427.9,4.11869209]
[1750947261944,2.1746,2428.2,2428.1,4.11844652]
[1750947262252,0.2056,2428.2,2427.9,4.11870293]
[1750947262460,0.2056,2428.2,2428.1,4.11844652]
[1750947262757,0.2056,2428.4,2428.3,4.11810731]
[1750947263156,1.924,2428.9,2428.4,4.11779818]
[1750947263344,0.2056,2428.7,2428.5,4.11775912]
[1750947263522,0.0321,2429.0,2428.3,4.32370731]
[1750947263523,1.924,2428.9,2428.6,0.41177591]
[1750947263723,2.1296,2428.9,2428.6,4.11758084]
[1750947264123,2.1296,2428.9,2428.5,4.11768146]
[1750947264524,2.1296,2428.9,2428.6,4.11759743]
[1750947264770,2.1296,2428.9,2428.5,4.11770516]
[1750947265061,2.1296,2428.9,2428.6,4.11759607]
[1750947265220,2.1296,2428.9,2428.7,0.5]
[1750947265624,0.2056,2428.9,2428.7,4.61739778]
[1750947265824,2.1296,2428.9,2428.7,0.5]
[1750947266058,0.2056,2428.9,2428.7,0.5]
[1750947266563,2.1296,2428.9,2428.7,0.5]
[1750947268127,2.1296,2428.9,2428.7,4.61741964]
[1750947268128,0.2056,2428.9,2428.7,4.61741964]
[1750947268330,0.2056,2428.9,2428.7,5.49093552]
[1750947268623,0.2056,2428.9,2428.7,1.37351588]
[1750947269537,0.2056,2428.9,2428.7,0.5]
[1750947269731,0.2056,2428.9,2428.7,4.61742173]
[1750947269930,0.2056,2428.9,2428.7,0.5]
[1750947271559,0.2056,2428.9,2428.7,4.61740654]
[1750947271757,0.2056,2428.9,2428.7,0.5]
[1750947275435,0.2056,2428.9,2428.6,4.11758945]
[1750947275743,0.2056,2428.9,2428.5,4.11769338]
[1750947276148,0.2056,2428.9,2428.6,4.11759013]
[1750947277472,0.2056,2428.9,2428.6,0.84410544]
[1750947277848,0.2056,2428.9,2428.6,4.96161614]
[1750947278170,0.2056,2428.9,2428.6,0.84410544]
[1750947278368,0.2056,2428.9,2428.4,4.32344801]
[1750947278668,0.2056,2428.7,2428.4,4.11785047]
[1750947278849,0.2056,2428.7,2428.3,1.0059]
[1750947279165,0.2056,2428.7,2428.4,4.11784143]
[1750947279952,0.2056,2428.7,2428.3,5.12394537]
[1750947280196,0.2056,2428.5,2428.1,0.2056]
[1750947280348,0.2056,2428.5,2428.3,4.11796699]
[1750947280548,0.0321,2428.8,2428.1,1.76035464]
[1750947280549,1.9551,2428.8,2428.5,4.11766233]
[1750947280871,2.1607,2428.8,2428.5,4.11766233]
[1750947281484,2.1286,2428.8,2428.6,4.11753914]
[1750947281795,2.1286,2428.8,2428.5,4.11768324]
[1750947281979,2.1286,2428.8,2428.6,4.11756197]
[1750947282192,0.2056,2428.8,2428.7,4.11742907]
[1750947282695,0.2056,2428.8,2428.6,4.11751087]
[1750947283206,0.2056,2428.8,2428.7,4.11742907]
[1750947283370,0.2056,2428.9,2428.7,4.11736263]
[1750947283570,0.2056,2428.9,2428.8,4.52899581]
[1750947283903,0.0321,2429.4,2429.1,4.11666813]
[1750947283904,0.2056,2429.2,2429.1,4.11666813]
[1750947284107,0.2056,2429.2,2429.0,4.11683001]
[1750947284284,0.2056,2429.2,2429.1,4.11675106]
[1750947285239,0.2056,2429.2,2429.0,4.11691049]